[Event "*** Titled Tuesday Blitz"]
[Site "Chess.com"]
[Date "2020.12.01"]
[Round "1"]
[White "Oglob71"]
[Black "LPSupi"]
[Result "0-1"]
[WhiteElo "2438"]
[BlackElo "2912"]
[TimeControl "180+1"]
[EndTime "10:06:26 PST"]
[Termination "LPSupi won by resignation"]

1. d4 {[%clk 0:03:00.7]} 1... Nf6 {[%clk 0:02:58.7]} 2. Nf3 {[%clk 0:02:55.9]}
2... e6 {[%clk 0:02:54.7]} 3. e3 {[%clk 0:02:54.7]} 3... d5 {[%clk 0:02:50.5]}
4. Bd3 {[%clk 0:02:53.4]} 4... Bd6 {[%clk 0:02:48.8]} 5. Nbd2 {[%clk 0:02:52]}
5... b6 {[%clk 0:02:46.3]} 6. e4 {[%clk 0:02:51.4]} 6... dxe4 {[%clk 0:02:45.5]}
7. Nxe4 {[%clk 0:02:50.9]} 7... Bb7 {[%clk 0:02:45.7]} 8. Nxd6+ {[%clk
0:02:50.6]} 8... cxd6 {[%clk 0:02:45.4]} 9. O-O {[%clk 0:02:50.2]} 9... O-O
{[%clk 0:02:44.5]} 10. Bg5 {[%clk 0:02:48]} 10... h6 {[%clk 0:02:43.2]} 11. Bh4
{[%clk 0:02:47.8]} 11... Nbd7 {[%clk 0:02:37.6]} 12. c3 {[%clk 0:02:45.1]} 12...
Re8 {[%clk 0:02:37.6]} 13. Re1 {[%clk 0:02:44.3]} 13... Qc7 {[%clk 0:02:37.6]}
14. Bg3 {[%clk 0:02:37.8]} 14... Nh5 {[%clk 0:02:33.3]} 15. Nd2 {[%clk
0:02:35.4]} 15... Nxg3 {[%clk 0:02:32.6]} 16. hxg3 {[%clk 0:02:34]} 16... Rad8
{[%clk 0:02:31.3]} 17. Qh5 {[%clk 0:02:30.6]} 17... Nf6 {[%clk 0:02:26.5]} 18.
Qe2 {[%clk 0:02:29.3]} 18... e5 {[%clk 0:02:21.9]} 19. dxe5 {[%clk 0:02:25.5]}
19... dxe5 {[%clk 0:02:22.8]} 20. Bb5 {[%clk 0:02:17.5]} 20... Re7 {[%clk
0:02:13.3]} 21. Rad1 {[%clk 0:02:16.7]} 21... e4 {[%clk 0:02:04]} 22. Nf1 {[%clk
0:02:14.2]} 22... Rd5 {[%clk 0:01:49.9]} 23. Ne3 {[%clk 0:02:11.2]} 23... Rg5
{[%clk 0:01:33.6]} 24. Bc4 {[%clk 0:02:04.9]} 24... h5 {[%clk 0:01:23.8]} 25.
Rd4 {[%clk 0:02:03.6]} 25... Qe5 {[%clk 0:01:06.1]} 26. Red1 {[%clk 0:02:02.7]}
26... g6 {[%clk 0:01:06]} 27. Nd5 {[%clk 0:01:55.9]} 27... Bxd5 {[%clk
0:01:04.8]} 28. Bxd5 {[%clk 0:01:53.8]} 28... Nxd5 {[%clk 0:00:58.9]} 29. Rxd5
{[%clk 0:01:53]} 29... Qxd5 {[%clk 0:00:59]} 30. Rxd5 {[%clk 0:01:52.6]} 30...
Rxd5 {[%clk 0:00:59.9]} 31. Qc4 {[%clk 0:01:31.9]} 31... Rd1+ {[%clk 0:00:56.6]}
32. Kh2 {[%clk 0:01:31.7]} 32... Rd2 {[%clk 0:00:54.4]} 33. Qb4 {[%clk
0:01:28.9]} 33... Re6 {[%clk 0:00:46.9]} 34. Kg1 {[%clk 0:01:26.7]} 34... e3
{[%clk 0:00:43.8]} 35. fxe3 {[%clk 0:01:24.4]} 35... Rxe3 {[%clk 0:00:43.7]} 36.
Qf4 {[%clk 0:01:24.9]} 36... Re1+ {[%clk 0:00:39.4]} 37. Kh2 {[%clk 0:01:21.1]}
37... Ree2 {[%clk 0:00:40.3]} 38. Qb8+ {[%clk 0:01:18.7]} 38... Kg7 {[%clk
0:00:37.7]} 39. Qxa7 {[%clk 0:01:15.1]} 39... Rxg2+ {[%clk 0:00:37.4]} 40. Kh1
{[%clk 0:01:13.1]} 40... Rge2 {[%clk 0:00:35.8]} 41. Qxb6 {[%clk 0:01:09.4]}
41... Re1+ {[%clk 0:00:35]} 42. Qg1 {[%clk 0:01:09.8]} 42... Rxg1+ {[%clk
0:00:35.9]} 43. Kxg1 {[%clk 0:01:09.7]} 43... Rxb2 {[%clk 0:00:36.8]} 44. a4
{[%clk 0:01:09.2]} 44... Ra2 {[%clk 0:00:36.7]} 45. a5 {[%clk 0:01:07.3]} 45...
Rxa5 {[%clk 0:00:36.7]} 46. Kf2 {[%clk 0:01:07.7]} 46... Rc5 {[%clk 0:00:36.9]}
0-1

[Event "*** Titled Tuesday Blitz"]
[Site "Chess.com"]
[Date "2020.12.01"]
[Round "1"]
[White "Gerasimenyuk_Miha"]
[Black "Arseniy_Nesterov"]
[Result "0-1"]
[WhiteElo "2419"]
[BlackElo "2850"]
[TimeControl "180+1"]
[EndTime "10:06:26 PST"]
[Termination "Arseniy_Nesterov won by resignation"]

1. d4 {[%clk 0:02:59.6]} 1... d5 {[%clk 0:03:00.1]} 2. Nf3 {[%clk 0:03:00.1]}
2... Nf6 {[%clk 0:02:59.9]} 3. Bg5 {[%clk 0:03:00.2]} 3... e6 {[%clk 0:02:58.8]}
4. e3 {[%clk 0:03:00.6]} 4... Be7 {[%clk 0:02:58.1]} 5. Nbd2 {[%clk 0:03:00.9]}
5... O-O {[%clk 0:02:58.1]} 6. Bd3 {[%clk 0:03:01]} 6... b6 {[%clk 0:02:58.1]}
7. c3 {[%clk 0:02:59.9]} 7... c5 {[%clk 0:02:55]} 8. h4 {[%clk 0:03:00]} 8...
Ba6 {[%clk 0:02:52]} 9. Bb1 {[%clk 0:02:59.9]} 9... Re8 {[%clk 0:02:28.7]} 10.
Qc2 {[%clk 0:02:43.5]} 10... Nbd7 {[%clk 0:02:23.6]} 11. Ne5 {[%clk 0:02:42.7]}
11... Nf8 {[%clk 0:01:59.8]} 12. Ndf3 {[%clk 0:02:35.5]} 12... Qc7 {[%clk
0:01:49.8]} 13. Bf4 {[%clk 0:02:24.3]} 13... Bd6 {[%clk 0:01:42.1]} 14. Ng5
{[%clk 0:02:22]} 14... cxd4 {[%clk 0:01:41.3]} 15. exd4 {[%clk 0:02:09.7]} 15...
Re7 {[%clk 0:01:39.4]} 16. g3 {[%clk 0:01:59.2]} 16... Ng6 {[%clk 0:01:24.3]}
17. Nxg6 {[%clk 0:01:53.8]} 17... hxg6 {[%clk 0:01:23]} 18. Bxd6 {[%clk
0:01:50.5]} 18... Qxd6 {[%clk 0:01:23.2]} 19. f4 {[%clk 0:01:48.6]} 19... Nh5
{[%clk 0:01:18.9]} 20. Kf2 {[%clk 0:01:31.8]} 20... b5 {[%clk 0:01:01.2]} 21.
Re1 {[%clk 0:01:24.5]} 21... b4 {[%clk 0:00:59.5]} 22. Qa4 {[%clk 0:01:03.7]}
22... bxc3 {[%clk 0:00:57.3]} 23. bxc3 {[%clk 0:01:03.7]} 23... Rc8 {[%clk
0:00:57.9]} 24. Re3 {[%clk 0:01:02.5]} 24... Nf6 {[%clk 0:00:54.1]} 25. Kg2
{[%clk 0:00:51]} 25... Rec7 {[%clk 0:00:52.9]} 26. Qb3 {[%clk 0:00:33.2]} 26...
Rb7 {[%clk 0:00:47]} 27. Qc2 {[%clk 0:00:31.9]} 27... Qa3 {[%clk 0:00:45.7]} 28.
Kh3 {[%clk 0:00:29.9]} 28... Rb2 {[%clk 0:00:43.6]} 29. Qc1 {[%clk 0:00:23.7]}
29... Rh2+ {[%clk 0:00:42.1]} 30. Kxh2 {[%clk 0:00:21.6]} 30... Qxc1 {[%clk
0:00:42.7]} 0-1

[Event "*** Titled Tuesday Blitz"]
[Site "Chess.com"]
[Date "2020.12.01"]
[Round "1"]
[White "dosto07"]
[Black "LionTheLeon_06"]
[Result "0-1"]
[WhiteElo "2313"]
[BlackElo "2637"]
[TimeControl "180+1"]
[EndTime "10:06:27 PST"]
[Termination "LionTheLeon_06 won by resignation"]

1. e4 {[%clk 0:02:59]} 1... g6 {[%clk 0:02:58.2]} 2. d4 {[%clk 0:02:57.6]} 2...
Bg7 {[%clk 0:02:58.3]} 3. Nf3 {[%clk 0:02:57.7]} 3... d6 {[%clk 0:02:57.1]} 4.
Nc3 {[%clk 0:02:57.3]} 4... a6 {[%clk 0:02:57.2]} 5. a4 {[%clk 0:02:55.5]} 5...
b6 {[%clk 0:02:56.9]} 6. Be2 {[%clk 0:02:54.7]} 6... Bb7 {[%clk 0:02:57.1]} 7.
O-O {[%clk 0:02:54.8]} 7... e6 {[%clk 0:02:57.4]} 8. Re1 {[%clk 0:02:47.3]} 8...
Nd7 {[%clk 0:02:57]} 9. Bf4 {[%clk 0:02:45.3]} 9... Ne7 {[%clk 0:02:56.9]} 10.
Qd2 {[%clk 0:02:44.6]} 10... h6 {[%clk 0:02:36]} 11. h4 {[%clk 0:02:41]} 11...
Kf8 {[%clk 0:02:25]} 12. Bd3 {[%clk 0:02:35]} 12... Kg8 {[%clk 0:02:24.1]} 13.
Rad1 {[%clk 0:02:32.4]} 13... Nc6 {[%clk 0:02:16]} 14. d5 {[%clk 0:02:12.6]}
14... exd5 {[%clk 0:02:13.2]} 15. exd5 {[%clk 0:02:01.7]} 15... Nce5 {[%clk
0:02:13.2]} 16. Nxe5 {[%clk 0:01:51.5]} 16... Nxe5 {[%clk 0:02:13]} 17. Bg3
{[%clk 0:01:39.1]} 17... Qd7 {[%clk 0:02:05.3]} 18. Qf4 {[%clk 0:01:33.5]} 18...
Re8 {[%clk 0:02:00.9]} 19. Ne4 {[%clk 0:01:30.1]} 19... f5 {[%clk 0:01:42.9]}
20. Nc3 {[%clk 0:01:20.2]} 20... h5 {[%clk 0:01:43.2]} 21. Ne2 {[%clk
0:01:12.8]} 21... Nxd3 {[%clk 0:01:34.4]} 22. cxd3 {[%clk 0:01:07.6]} 22... Bxd5
{[%clk 0:01:30.7]} 23. Nd4 {[%clk 0:00:53]} 23... Kh7 {[%clk 0:01:27.9]} 24. Nf3
{[%clk 0:00:50.3]} 24... Bxf3 {[%clk 0:01:28]} 25. Qxf3 {[%clk 0:00:49.5]} 25...
Qxa4 {[%clk 0:01:24.8]} 26. Qb7 {[%clk 0:00:46.8]} 26... Qc2 {[%clk 0:00:51.9]}
27. Qxa6 {[%clk 0:00:31.8]} 27... Qxb2 {[%clk 0:00:52]} 28. Qc4 {[%clk
0:00:30.3]} 28... Qc3 {[%clk 0:00:50]} 29. Qxc3 {[%clk 0:00:20.5]} 29... Bxc3
{[%clk 0:00:49.3]} 30. Rxe8 {[%clk 0:00:21.4]} 30... Rxe8 {[%clk 0:00:49.7]} 31.
Rc1 {[%clk 0:00:21.5]} 31... Re1+ {[%clk 0:00:50]} 32. Rxe1 {[%clk 0:00:20.3]}
32... Bxe1 {[%clk 0:00:50.9]} 33. Kf1 {[%clk 0:00:20.7]} 33... Bc3 {[%clk
0:00:51.2]} 34. Ke2 {[%clk 0:00:20.6]} 34... Bd4 {[%clk 0:00:51.7]} 35. Kf3
{[%clk 0:00:20.4]} 35... b5 {[%clk 0:00:51.8]} 36. Bf4 {[%clk 0:00:19.8]} 36...
b4 {[%clk 0:00:52.2]} 37. Bd2 {[%clk 0:00:20.6]} 37... b3 {[%clk 0:00:52.7]} 38.
Bc1 {[%clk 0:00:19.1]} 38... b2 {[%clk 0:00:52.6]} 39. Bxb2 {[%clk 0:00:19.2]}
39... Bxb2 {[%clk 0:00:53.5]} 0-1

[Event "*** Titled Tuesday Blitz"]
[Site "Chess.com"]
[Date "2020.12.01"]
[Round "1"]
[White "snowlord"]
[Black "mapleaff"]
[Result "1-0"]
[WhiteElo "2805"]
[BlackElo "2401"]
[TimeControl "180+1"]
[EndTime "10:06:28 PST"]
[Termination "snowlord won by resignation"]

1. d4 {[%clk 0:03:00.9]} 1... Nf6 {[%clk 0:02:59.6]} 2. c4 {[%clk 0:03:01.2]}
2... e6 {[%clk 0:02:57.4]} 3. Nf3 {[%clk 0:03:01.2]} 3... d5 {[%clk 0:02:57.6]}
4. g3 {[%clk 0:03:01.2]} 4... Be7 {[%clk 0:02:57]} 5. Bg2 {[%clk 0:03:01.1]}
5... O-O {[%clk 0:02:53.2]} 6. Nc3 {[%clk 0:03:01.7]} 6... dxc4 {[%clk
0:02:54.1]} 7. Ne5 {[%clk 0:03:01.4]} 7... Nc6 {[%clk 0:02:46.7]} 8. Bxc6 {[%clk
0:03:01]} 8... bxc6 {[%clk 0:02:44.4]} 9. Nxc6 {[%clk 0:03:01.9]} 9... Qe8
{[%clk 0:02:42.6]} 10. Nxe7+ {[%clk 0:03:02.5]} 10... Qxe7 {[%clk 0:02:43.5]}
11. Qa4 {[%clk 0:03:03.1]} 11... Bb7 {[%clk 0:02:40.1]} 12. O-O {[%clk
0:03:00.3]} 12... c5 {[%clk 0:02:35.5]} 13. Qxc4 {[%clk 0:02:58.4]} 13... cxd4
{[%clk 0:02:34.9]} 14. Qxd4 {[%clk 0:02:59.3]} 14... e5 {[%clk 0:02:35.2]} 15.
Qh4 {[%clk 0:02:57.2]} 15... h6 {[%clk 0:02:35.3]} 16. Be3 {[%clk 0:02:47]}
16... Qe6 {[%clk 0:02:32.6]} 17. Rad1 {[%clk 0:02:47]} 17... Ng4 {[%clk
0:02:20]} 18. Bc1 {[%clk 0:02:28.4]} 18... Qc6 {[%clk 0:01:43.8]} 19. f3 {[%clk
0:02:27.8]} 19... Qb6+ {[%clk 0:01:39.8]} 20. Kg2 {[%clk 0:02:27.5]} 20... Ne3+
{[%clk 0:01:39.4]} 21. Bxe3 {[%clk 0:02:27]} 21... Qxe3 {[%clk 0:01:40.3]} 22.
Qb4 {[%clk 0:01:59.8]} 22... Rab8 {[%clk 0:01:37.2]} 23. Qa3 {[%clk 0:01:53]}
23... h5 {[%clk 0:01:12.7]} 24. Rd3 {[%clk 0:01:48.7]} 24... Qg5 {[%clk
0:01:12]} 25. Qxa7 {[%clk 0:01:41.4]} 25... h4 {[%clk 0:00:57.6]} 26. Qe3 {[%clk
0:01:40.8]} 26... Qg6 {[%clk 0:00:55.2]} 27. b3 {[%clk 0:01:35.4]} 27... hxg3
{[%clk 0:00:53.9]} 28. hxg3 {[%clk 0:01:36.3]} 28... Ba6 {[%clk 0:00:51.6]} 29.
Nd5 {[%clk 0:01:34.2]} 29... Rfe8 {[%clk 0:00:43.6]} 30. Rd2 {[%clk 0:01:31.3]}
30... Bb7 {[%clk 0:00:39.1]} 31. Rfd1 {[%clk 0:01:25.5]} 31... f5 {[%clk
0:00:30.5]} 32. Qc5 {[%clk 0:01:18.1]} 32... f4 {[%clk 0:00:25.6]} 33. g4 {[%clk
0:01:16.3]} 33... e4 {[%clk 0:00:20.6]} 34. Qc4 {[%clk 0:00:53.6]} 34... exf3+
{[%clk 0:00:19.4]} 35. exf3 {[%clk 0:00:54.5]} 35... Re6 {[%clk 0:00:16.7]} 36.
Ne7+ {[%clk 0:00:53.5]} 36... Kf7 {[%clk 0:00:15.3]} 37. Nxg6 {[%clk 0:00:54.4]}
1-0

[Event "*** Titled Tuesday Blitz"]
[Site "Chess.com"]
[Date "2020.12.01"]
[Round "1"]
[White "Azerichess"]
[Black "Snegokhod"]
[Result "1-0"]
[WhiteElo "2958"]
[BlackElo "2445"]
[TimeControl "180+1"]
[EndTime "10:06:29 PST"]
[Termination "Azerichess won by resignation"]

1. d4 {[%clk 0:02:00.7]} 1... Nf6 {[%clk 0:02:58.2]} 2. c4 {[%clk 0:01:58.4]}
2... g6 {[%clk 0:02:57.4]} 3. Nc3 {[%clk 0:01:58.4]} 3... d5 {[%clk 0:02:57]} 4.
Nf3 {[%clk 0:01:58.3]} 4... Bg7 {[%clk 0:02:56.8]} 5. cxd5 {[%clk 0:01:58.8]}
5... Nxd5 {[%clk 0:02:56.5]} 6. Bg5 {[%clk 0:01:59.4]} 6... O-O {[%clk
0:02:55.4]} 7. Rc1 {[%clk 0:01:58.8]} 7... c6 {[%clk 0:02:54.2]} 8. e4 {[%clk
0:01:56.4]} 8... Nb6 {[%clk 0:02:52.3]} 9. Be2 {[%clk 0:01:54.6]} 9... N8d7
{[%clk 0:02:52.1]} 10. O-O {[%clk 0:01:54.2]} 10... h6 {[%clk 0:02:52.6]} 11.
Be3 {[%clk 0:01:52.7]} 11... Kh7 {[%clk 0:02:53]} 12. Re1 {[%clk 0:01:52.3]}
12... e5 {[%clk 0:02:50.4]} 13. h3 {[%clk 0:01:51.4]} 13... Re8 {[%clk
0:02:48.9]} 14. d5 {[%clk 0:01:45]} 14... cxd5 {[%clk 0:02:48.2]} 15. Nxd5
{[%clk 0:01:45.9]} 15... Nxd5 {[%clk 0:02:48.1]} 16. Qxd5 {[%clk 0:01:46.7]}
16... Qe7 {[%clk 0:02:24]} 17. Rc7 {[%clk 0:01:44]} 17... Qe6 {[%clk 0:02:12.7]}
18. Qxe6 {[%clk 0:01:39.6]} 18... Rxe6 {[%clk 0:02:10.4]} 19. Rd1 {[%clk
0:01:37.4]} 19... Nf6 {[%clk 0:02:01.5]} 20. Rxf7 {[%clk 0:01:24]} 20... Nxe4
{[%clk 0:02:01.1]} 21. Rd8 {[%clk 0:01:24.4]} 21... Rd6 {[%clk 0:01:57.4]} 22.
Rxd6 {[%clk 0:01:12]} 22... Nxd6 {[%clk 0:01:57]} 23. Rc7 {[%clk 0:01:12.1]}
23... Be6 {[%clk 0:01:53.7]} 24. Nxe5 {[%clk 0:01:08.7]} 24... Rc8 {[%clk
0:01:49.5]} 25. Re7 {[%clk 0:00:48.3]} 25... Bxa2 {[%clk 0:01:48.1]} 26. Bd3
{[%clk 0:00:48.6]} 26... Kg8 {[%clk 0:01:39]} 27. Nxg6 {[%clk 0:00:44.9]} 27...
Bxb2 {[%clk 0:01:29.7]} 28. Rd7 {[%clk 0:00:44.9]} 28... Rc3 {[%clk 0:00:48.9]}
29. Rxd6 {[%clk 0:00:38.6]} 29... Bc4 {[%clk 0:00:47.5]} 30. Rd8+ {[%clk
0:00:33.4]} 30... Kg7 {[%clk 0:00:45.9]} 31. Bd4+ {[%clk 0:00:31.7]} 31... Kf7
{[%clk 0:00:46.2]} 32. Bxc3 {[%clk 0:00:31.2]} 32... Bxc3 {[%clk 0:00:43.1]} 33.
Bxc4+ {[%clk 0:00:30.8]} 33... Kxg6 {[%clk 0:00:43.6]} 34. Rd6+ {[%clk
0:00:30.7]} 34... Kf5 {[%clk 0:00:43.5]} 35. Rd7 {[%clk 0:00:31.6]} 35... b5
{[%clk 0:00:41.1]} 36. Bxb5 {[%clk 0:00:31.4]} 36... Ke6 {[%clk 0:00:41.5]} 37.
Rxa7 {[%clk 0:00:31.4]} 1-0

[Event "*** Titled Tuesday Blitz"]
[Site "Chess.com"]
[Date "2020.12.01"]
[Round "1"]
[White "Kretov_Evgenij"]
[Black "GM_dmitrij"]
[Result "0-1"]
[WhiteElo "2444"]
[BlackElo "2957"]
[TimeControl "180+1"]
[EndTime "10:06:30 PST"]
[Termination "GM_dmitrij won by checkmate"]

1. d4 {[%clk 0:02:59.2]} 1... Nf6 {[%clk 0:02:57.1]} 2. c4 {[%clk 0:02:59.5]}
2... g6 {[%clk 0:02:57.4]} 3. Nc3 {[%clk 0:02:59.9]} 3... Bg7 {[%clk 0:02:57.6]}
4. e4 {[%clk 0:03:00.3]} 4... O-O {[%clk 0:02:58.3]} 5. Be2 {[%clk 0:03:00.6]}
5... d6 {[%clk 0:02:58.2]} 6. Bg5 {[%clk 0:03:00.7]} 6... c5 {[%clk 0:02:57.5]}
7. d5 {[%clk 0:03:00.5]} 7... h6 {[%clk 0:02:57.5]} 8. Bf4 {[%clk 0:03:00.5]}
8... e6 {[%clk 0:02:58.1]} 9. dxe6 {[%clk 0:03:00.9]} 9... Bxe6 {[%clk
0:02:58.8]} 10. Bxd6 {[%clk 0:03:01.1]} 10... Re8 {[%clk 0:02:54.9]} 11. Nf3
{[%clk 0:03:01.3]} 11... Qb6 {[%clk 0:02:48.7]} 12. Bxb8 {[%clk 0:02:55.4]}
12... Raxb8 {[%clk 0:02:44.8]} 13. Qc2 {[%clk 0:02:55.3]} 13... Qb4 {[%clk
0:02:33.4]} 14. a3 {[%clk 0:02:50.3]} 14... Qa5 {[%clk 0:02:33.4]} 15. O-O
{[%clk 0:02:49.9]} 15... a6 {[%clk 0:02:32.7]} 16. Nd5 {[%clk 0:02:39.6]} 16...
b5 {[%clk 0:02:32.5]} 17. cxb5 {[%clk 0:02:33.6]} 17... Nxd5 {[%clk 0:02:16.7]}
18. exd5 {[%clk 0:02:33.5]} 18... Bxd5 {[%clk 0:02:17.6]} 19. b4 {[%clk
0:02:25.8]} 19... cxb4 {[%clk 0:01:57.3]} 20. axb4 {[%clk 0:02:24.9]} 20... Qxb4
{[%clk 0:01:58.2]} 21. Rxa6 {[%clk 0:02:23.8]} 21... Rbc8 {[%clk 0:01:49.6]} 22.
Qd1 {[%clk 0:02:06]} 22... Bb3 {[%clk 0:01:33.6]} 23. Qd2 {[%clk 0:02:00.1]}
23... Qe4 {[%clk 0:01:08.1]} 24. Bd1 {[%clk 0:01:46.7]} 24... Rcd8 {[%clk
0:00:52.3]} 25. Qc1 {[%clk 0:01:38.2]} 25... Bc4 {[%clk 0:00:44.1]} 26. Bc2
{[%clk 0:01:38]} 26... Qg4 {[%clk 0:00:34]} 27. h3 {[%clk 0:01:37.2]} 27... Qh5
{[%clk 0:00:31.3]} 28. Bxg6 {[%clk 0:01:35]} 28... Qxb5 {[%clk 0:00:28.2]} 29.
Bxf7+ {[%clk 0:01:11.1]} 29... Bxf7 {[%clk 0:00:29.1]} 30. Ra7 {[%clk 0:01:10]}
30... Ra8 {[%clk 0:00:28.8]} 31. Qc7 {[%clk 0:01:05.6]} 31... Rxa7 {[%clk
0:00:22.5]} 32. Qxa7 {[%clk 0:01:05.8]} 32... Bd5 {[%clk 0:00:20.1]} 33. Nd4
{[%clk 0:00:59]} 33... Qd3 {[%clk 0:00:18]} 34. Qd7 {[%clk 0:00:53.6]} 34... Qe4
{[%clk 0:00:18.2]} 35. Nf5 {[%clk 0:00:50.4]} 35... Qxg2# {[%clk 0:00:17.2]} 0-1

[Event "*** Titled Tuesday Blitz"]
[Site "Chess.com"]
[Date "2020.12.01"]
[Round "1"]
[White "igorkovalenko"]
[Black "AsaHoffmann"]
[Result "1-0"]
[WhiteElo "2791"]
[BlackElo "2392"]
[TimeControl "180+1"]
[EndTime "10:06:31 PST"]
[Termination "igorkovalenko won by resignation"]

1. e4 {[%clk 0:03:00.9]} 1... d6 {[%clk 0:02:57.9]} 2. d4 {[%clk 0:03:00.2]}
2... c6 {[%clk 0:02:57.5]} 3. c4 {[%clk 0:02:52.8]} 3... e5 {[%clk 0:02:56.5]}
4. Ne2 {[%clk 0:02:51]} 4... Qc7 {[%clk 0:02:56.1]} 5. Nbc3 {[%clk 0:02:50.8]}
5... Nf6 {[%clk 0:02:55.5]} 6. f3 {[%clk 0:02:46.2]} 6... Be7 {[%clk 0:02:54.3]}
7. Be3 {[%clk 0:02:46.3]} 7... Nbd7 {[%clk 0:02:53.9]} 8. Rc1 {[%clk 0:02:45.7]}
8... a6 {[%clk 0:02:53.2]} 9. Qd2 {[%clk 0:02:44.6]} 9... Nf8 {[%clk 0:02:48.6]}
10. b4 {[%clk 0:02:34.5]} 10... Ng6 {[%clk 0:02:47.1]} 11. d5 {[%clk 0:02:32.7]}
11... c5 {[%clk 0:02:36.7]} 12. bxc5 {[%clk 0:02:32.6]} 12... dxc5 {[%clk
0:02:36.3]} 13. a4 {[%clk 0:02:31.1]} 13... b6 {[%clk 0:02:35.5]} 14. Rb1 {[%clk
0:02:30.8]} 14... Bd7 {[%clk 0:02:29.9]} 15. Nc1 {[%clk 0:02:24.3]} 15... O-O
{[%clk 0:02:28.4]} 16. Bd3 {[%clk 0:02:23.9]} 16... Ne8 {[%clk 0:02:27.7]} 17.
O-O {[%clk 0:02:21.7]} 17... Nd6 {[%clk 0:02:27.4]} 18. N1e2 {[%clk 0:02:21.7]}
18... Rfb8 {[%clk 0:02:25.6]} 19. Qc2 {[%clk 0:02:13.7]} 19... Qd8 {[%clk
0:02:22.1]} 20. g3 {[%clk 0:02:06.3]} 20... Bg5 {[%clk 0:02:10.4]} 21. Bf2
{[%clk 0:02:05.4]} 21... h5 {[%clk 0:02:07]} 22. h4 {[%clk 0:02:02.9]} 22... Bh6
{[%clk 0:02:06.2]} 23. Kh2 {[%clk 0:02:02.7]} 23... Qe7 {[%clk 0:01:53.4]} 24.
Rb2 {[%clk 0:02:02]} 24... b5 {[%clk 0:01:48.1]} 25. axb5 {[%clk 0:02:01.8]}
25... axb5 {[%clk 0:01:47.9]} 26. Bxc5 {[%clk 0:01:30]} 26... bxc4 {[%clk
0:01:27.6]} 27. Rxb8+ {[%clk 0:01:30.9]} 27... Rxb8 {[%clk 0:01:25.8]} 28. Bxc4
{[%clk 0:01:31.8]} 28... Nxc4 {[%clk 0:01:21.3]} 29. Bxe7 {[%clk 0:01:30.7]}
29... Ne3 {[%clk 0:01:20.9]} 30. Rb1 {[%clk 0:01:22.7]} 30... Rxb1 {[%clk
0:00:48.8]} 31. Qxb1 {[%clk 0:01:18.4]} 31... Nxe7 {[%clk 0:00:48]} 32. Qb7
{[%clk 0:01:11.2]} 32... Nf1+ {[%clk 0:00:26.4]} 33. Kg1 {[%clk 0:01:08.9]}
33... Bh3 {[%clk 0:00:22.7]} 34. Qxe7 {[%clk 0:01:02.9]} 34... Be3+ {[%clk
0:00:21.7]} 35. Kh1 {[%clk 0:01:03.4]} 35... Bd4 {[%clk 0:00:19.4]} 36. Nxd4
{[%clk 0:01:01.3]} 36... exd4 {[%clk 0:00:19]} 37. Nb5 {[%clk 0:01:01.3]} 37...
d3 {[%clk 0:00:18.6]} 38. Qg5 {[%clk 0:00:58.1]} 38... d2 {[%clk 0:00:17.4]} 39.
Nc3 {[%clk 0:00:58.3]} 1-0

[Event "*** Titled Tuesday Blitz"]
[Site "Chess.com"]
[Date "2020.12.01"]
[Round "1"]
[White "CoachHakia"]
[Black "FontVella8"]
[Result "0-1"]
[WhiteElo "2157"]
[BlackElo "2510"]
[TimeControl "180+1"]
[EndTime "10:06:31 PST"]
[Termination "FontVella8 won by resignation"]

1. d4 {[%clk 0:03:00.9]} 1... e6 {[%clk 0:03:00.4]} 2. Nf3 {[%clk 0:03:00.7]}
2... Nf6 {[%clk 0:03:00.1]} 3. e3 {[%clk 0:03:00.8]} 3... b6 {[%clk 0:02:58.7]}
4. Bd3 {[%clk 0:03:00.7]} 4... Bb7 {[%clk 0:02:59.1]} 5. O-O {[%clk 0:03:01.3]}
5... g6 {[%clk 0:02:59.3]} 6. Nbd2 {[%clk 0:03:01.7]} 6... Bg7 {[%clk
0:02:59.7]} 7. Qe2 {[%clk 0:03:01.7]} 7... d5 {[%clk 0:02:59.8]} 8. Ne5 {[%clk
0:02:57.8]} 8... O-O {[%clk 0:02:59]} 9. c3 {[%clk 0:02:55]} 9... Ne4 {[%clk
0:02:58]} 10. f3 {[%clk 0:02:49.9]} 10... Nxd2 {[%clk 0:02:58]} 11. Bxd2 {[%clk
0:02:50.8]} 11... Nd7 {[%clk 0:02:58.1]} 12. Nxd7 {[%clk 0:02:45.3]} 12... Qxd7
{[%clk 0:02:58]} 13. e4 {[%clk 0:02:46.2]} 13... Rfe8 {[%clk 0:02:55.2]} 14. e5
{[%clk 0:02:46.2]} 14... c5 {[%clk 0:02:53.5]} 15. f4 {[%clk 0:02:26.5]} 15...
cxd4 {[%clk 0:02:53]} 16. cxd4 {[%clk 0:02:26.4]} 16... Rac8 {[%clk 0:02:53.3]}
17. Bc3 {[%clk 0:02:20.6]} 17... a5 {[%clk 0:02:44.6]} 18. g4 {[%clk 0:02:12.6]}
18... f5 {[%clk 0:02:21.3]} 19. exf6 {[%clk 0:02:08.3]} 19... Bxf6 {[%clk
0:02:21.1]} 20. Rae1 {[%clk 0:01:45.7]} 20... Bg7 {[%clk 0:02:20.2]} 21. Qg2
{[%clk 0:01:29.3]} 21... Rf8 {[%clk 0:02:18]} 22. h4 {[%clk 0:01:22]} 22... Rce8
{[%clk 0:02:16.6]} 23. h5 {[%clk 0:01:21.2]} 23... gxh5 {[%clk 0:02:16.6]} 24.
gxh5 {[%clk 0:01:22.1]} 24... Kh8 {[%clk 0:02:16.2]} 25. Kh1 {[%clk 0:01:19.3]}
25... Rg8 {[%clk 0:02:14.6]} 26. Qh3 {[%clk 0:01:12.8]} 26... Bh6 {[%clk
0:02:13.1]} 27. f5 {[%clk 0:00:53.4]} 27... exf5 {[%clk 0:02:12.2]} 28. Bxf5
{[%clk 0:00:51.3]} 28... Qd6 {[%clk 0:01:52.5]} 29. Re5 {[%clk 0:00:43.4]} 29...
Bg7 {[%clk 0:01:03.7]} 30. Rfe1 {[%clk 0:00:35.5]} 30... Bxe5 {[%clk 0:00:48.5]}
31. Rxe5 {[%clk 0:00:34]} 31... Rxe5 {[%clk 0:00:45.7]} 32. dxe5 {[%clk
0:00:34.9]} 32... d4+ {[%clk 0:00:45.7]} 0-1